bitfinex/quotes_SOLUSD_20240613
["timestamp","ask_amount","ask_price","bid_price","bid_amount"]
[1718268293878,6.81365667,152.38,152.36,8.31]
[1718268295299,0.8197469,152.39,152.32,24.732]
[1718268295614,0.8197469,152.39,152.33,45.51]
[1718268295899,0.8197469,152.39,152.33,45.0]
[1718268298606,0.8197469,152.39,152.35,8.31]
[1718268298900,0.8197469,152.39,152.32,16.422]
[1718268299211,0.8197469,152.39,152.34,8.31]
[1718268300403,8.31,152.38,152.27,28.70334447]
[1718268300605,8.31,152.38,152.27,22.2766]
[1718268300822,8.31,152.38,152.32,8.31]
[1718268301119,0.8197469,152.39,152.27,22.2766]
[1718268301515,0.8197469,152.39,152.35,8.31]
[1718268302301,0.8197469,152.39,152.38,8.31]
[1718268304084,0.8197469,152.39,152.38,45.0]
[1718268304285,0.8197469,152.39,152.38,53.31]
[1718268304517,0.8197469,152.39,152.38,8.31]
[1718268305693,0.8197469,152.39,152.31,15.0018]
[1718268305895,0.8197469,152.39,152.34,8.31]
[1718268306210,0.8197469,152.39,152.31,15.0018]
[1718268306211,0.8197469,152.39,152.32,33.24]
[1718268306397,0.8197469,152.39,152.38,8.31]
[1718268308214,0.8197469,152.39,152.31,15.0018]
[1718268308394,0.8197469,152.39,152.36,8.31]
[1718268309704,0.8197469,152.39,152.32,78.92]
[1718268309705,0.8197469,152.39,152.38,8.31]
[1718268310390,0.8197469,152.39,152.34,6.3534]
[1718268310584,0.8197469,152.39,152.35,45.0]
[1718268310805,0.8197469,152.39,152.32,33.24]
[1718268311431,0.8197469,152.39,152.37,8.31]
[1718268311605,0.8197469,152.39,152.31,15.0018]
[1718268311942,0.8197469,152.39,152.35,8.31]
[1718268312816,0.8197469,152.39,152.32,45.0]
[1718268313017,0.8197469,152.39,152.33,8.31]
[1718268313018,9.1297469,152.39,152.33,8.31]
[1718268313224,9.1297469,152.39,152.34,8.31]
[1718268313909,0.8197469,152.39,152.34,8.31]
[1718268314329,0.8197469,152.39,152.25,12.4709356]
[1718268314330,15.6382,152.36,152.25,12.4709356]
[1718268314635,6.5572,152.35,152.25,12.4709356]
[1718268314821,6.5572,152.35,152.3,8.31]
[1718268315534,6.5572,152.35,152.24,33.24]
[1718268315535,14.8672,152.35,152.29,8.31]
[1718268315833,8.31,152.33,152.27,8.31]
[1718268316035,8.31,152.33,152.23,15.9034]
[1718268316331,8.31,152.33,152.27,8.31]
[1718268316513,8.31,152.32,152.27,8.31]
[1718268316921,22.2634,152.37,152.23,15.9034]
[1718268317108,22.2634,152.37,152.24,7.13786842]
[1718268317109,30.5734,152.37,152.24,7.13786842]
[1718268317314,8.31,152.36,152.31,8.31]
[1718268317722,8.31,152.36,152.3,8.31]
[1718268318448,0.17,152.35,152.3,8.31]
[1718268318746,255.1197469,152.39,152.29,15.8481]
[1718268318911,255.1197469,152.39,152.34,8.31]
[1718268319308,255.1197469,152.39,152.3,45.0]
[1718268319544,255.1197469,152.39,152.34,8.31]
[1718268320641,255.1197469,152.39,152.3,45.0]
[1718268320820,8.31,152.37,152.31,8.31]
[1718268321137,0.51,152.38,152.25,15.4565]
[1718268321138,8.31,152.36,152.25,15.4565]
[1718268321310,8.31,152.36,152.3,8.31]
[1718268321511,29.9078,152.35,152.25,15.2865]
[1718268321711,29.9078,152.35,152.29,8.31]
[1718268322318,21.5978,152.35,152.29,8.31]
[1718268322521,29.9078,152.35,152.29,8.31]
[1718268322748,8.48,152.34,152.24,33.24]
[1718268323050,8.31,152.34,152.24,33.24]
[1718268323350,6.81575477,152.33,152.28,8.31]
[1718268323519,23.3322,152.31,152.21,16.3124]
[1718268323835,23.3322,152.31,152.24,8.31]
[1718268323836,6.5421,152.29,152.24,8.31]
[1718268324212,6.5421,152.29,152.17,15.9375]
[1718268324213,14.8521,152.29,152.23,8.31]
[1718268324611,14.8521,152.29,152.17,15.9375]
[1718268324816,6.5421,152.29,152.18,24.85]
[1718268326139,6.5421,152.29,152.19,45.68]
[1718268326327,6.5421,152.29,152.2,20.0]
[1718268326525,6.5421,152.29,152.21,45.0]
[1718268327945,15.0222,152.31,152.22,20.34]
[1718268328145,15.0222,152.31,152.23,45.34]
[1718268329468,15.0222,152.31,152.24,0.34]
[1718268329610,15.0222,152.31,152.25,0.17]
[1718268330226,6.81575477,152.33,152.25,16.9414]
[1718268330431,6.213,152.36,152.26,45.0]
[1718268330612,6.81452943,152.35,152.26,45.0]
[1718268332440,0.17,152.34,152.26,45.0]
[1718268332741,6.81452943,152.35,152.26,45.0]
[1718268335138,6.81452943,152.35,152.27,20.0]
[1718268335443,6.81452943,152.35,152.28,45.0]
[1718268337442,6.81452943,152.35,152.29,20.34]
[1718268337645,261.6116469,152.39,152.3,45.34]
[1718268337943,7.3116469,152.39,152.3,70.19]
[1718268340245,6.79106532,152.39,152.3,70.19]
[1718268340948,0.29916532,152.39,152.31,22.4945]
[1718268341152,0.29916532,152.39,152.32,45.34]
[1718268341661,0.29916532,152.39,152.32,45.0]
[1718268344837,0.29916532,152.39,152.37,8.27]
[1718268345239,0.29916532,152.39,152.33,0.34]
[1718268345555,0.29916532,152.39,152.37,8.27]
[1718268345756,0.29916532,152.39,152.36,8.27]
[1718268347047,0.29916532,152.39,152.32,45.0]
[1718268347239,0.29916532,152.39,152.36,8.27]
[1718268347849,0.29916532,152.39,152.35,8.27]
[1718268348254,0.29916532,152.39,152.31,16.241]
[1718268348461,0.29916532,152.39,152.35,8.27]
[1718268348662,0.29916532,152.39,152.34,8.27]
[1718268348964,0.29916532,152.39,152.35,8.27]
[1718268350290,0.29916532,152.39,152.38,8.27]
[1718268350446,0.29916532,152.39,152.31,16.241]
[1718268350646,0.29916532,152.39,152.36,8.27]
[1718268350946,0.29916532,152.39,152.32,45.0]
[1718268352150,0.29916532,152.39,152.28,24.81]
[1718268353455,0.29916532,152.39,152.29,45.51]
[1718268355544,7.11008295,152.39,152.29,45.51]
[1718268356476,6.4954,152.38,152.29,45.51]
[1718268356945,6.4954,152.38,152.29,45.0]
[1718268357350,6.4954,152.38,152.28,45.17]
[1718268357743,6.4954,152.38,152.28,45.0]
[1718268358670,0.17,152.37,152.28,45.0]
[1718268359877,6.4954,152.38,152.28,45.0]
[1718268360055,0.17,152.37,152.28,45.0]
[1718268361279,15.7047,152.36,152.28,45.0]
[1718268361658,15.7047,152.36,152.24,24.81]
[1718268361976,0.17,152.35,152.24,24.81]
[1718268362560,6.5486,152.34,152.23,40.3843]
[1718268362755,6.5486,152.34,152.23,24.81]
[1718268363064,15.0395,152.32,152.2,24.81]
[1718268364081,6.6464,152.31,152.2,24.81]
[1718268364373,0.17,152.29,152.17,32.93273553]
[1718268364575,0.17,152.29,152.17,31.7911462]
[1718268365570,0.17,152.29,152.17,24.81]
[1718268365784,6.9875585,152.29,152.18,20.0]
[1718268365960,0.17,152.28,152.19,45.0]
[1718268368775,6.6467,152.26,152.15,15.9208]
[1718268368967,6.6467,152.26,152.15,40.7308]
[1718268370260,6.6467,152.26,152.16,45.51]
[1718268373383,6.6467,152.26,152.16,45.0]
[1718268373592,0.17,152.25,152.16,45.0]
[1718268374885,8.46,152.25,152.2,8.29]
[1718268376183,0.17,152.24,152.16,45.0]
[1718268376390,0.17,152.24,152.17,8.29]
[1718268376391,24.2927,152.23,152.17,8.29]
[1718268376764,8.29,152.22,152.17,8.29]
[1718268378187,24.2927,152.23,152.12,0.17]
[1718268378387,24.2927,152.23,152.17,8.29]
[1718268382190,24.2927,152.23,152.18,8.29]
[1718268384090,16.0027,152.23,152.18,8.29]
[1718268384990,16.0027,152.23,152.22,8.29]
[1718268387093,16.0027,152.23,152.16,33.16]
[1718268387294,16.0027,152.23,152.19,8.29]
[1718268389267,16.0027,152.23,152.18,8.29]
[1718268389467,16.0027,152.23,152.19,8.29]
[1718268389987,16.0027,152.23,152.11,22.2708]
[1718268390295,8.46,152.22,152.16,8.29]
[1718268392777,8.46,152.22,152.12,0.17]
[1718268392970,8.46,152.22,152.16,8.29]
[1718268398578,6.6423,152.21,152.12,45.0]
[1718268398773,6.6423,152.21,152.16,8.29]
[1718268399200,6.6423,152.21,152.12,45.0]
[1718268399382,14.9323,152.21,152.15,8.29]
[1718268399906,6.6423,152.21,152.16,8.29]
[1718268400204,14.9323,152.21,152.15,8.29]
[1718268401500,14.9323,152.21,152.08,33.16]
[1718268401501,8.29,152.18,152.08,33.16]
[1718268401803,8.29,152.18,152.12,8.29]
[1718268402022,8.29,152.19,152.07,28.4216859]
[1718268402208,8.29,152.17,152.11,8.29]
[1718268402511,23.6176,152.17,152.11,8.29]
[1718268402810,14.2957,152.16,152.07,15.0696]
[1718268402982,8.46,152.15,152.09,8.29]
[1718268404277,8.46,152.14,152.03,29.5596859]
[1718268404479,8.63,152.14,152.08,8.29]
[1718268405001,8.29,152.13,152.03,22.3352]
[1718268405203,8.29,152.13,152.07,8.29]
[1718268405378,8.29,152.13,152.03,22.3352]
[1718268405579,0.34,152.15,152.08,8.29]
[1718268405796,8.29,152.14,152.09,8.29]
[1718268406098,8.29,152.14,152.08,8.29]
[1718268406788,24.9514,152.12,152.01,0.52058158]
[1718268406995,14.7536,152.11,152.05,8.29]
[1718268407307,8.29,152.1,152.05,8.29]
[1718268408698,6.4636,152.11,152.05,8.29]
[1718268408895,14.7536,152.11,152.05,8.29]
[1718268411111,14.7536,152.11,152.01,0.52058158]
[1718268411417,14.7536,152.11,152.05,8.29]
[1718268414296,8.29,152.1,152.04,8.29]
[1718268414488,8.29,152.1,152.01,0.52058158]
[1718268414803,8.29,152.1,152.04,8.29]
[1718268414985,8.29,152.09,152.04,8.29]
[1718268415712,8.29,152.09,152.01,0.52058158]
[1718268415911,8.29,152.09,152.04,8.29]
[1718268421109,8.29,152.09,152.01,0.52058158]
[1718268421306,8.29,152.08,152.02,8.29]
[1718268423415,8.29,152.08,152.03,8.29]
[1718268424423,42.278,152.07,152.01,0.52058158]
[1718268424600,8.29,152.05,152.01,0.52058158]
[1718268425004,8.29,152.06,152.01,0.52058158]
[1718268425207,42.278,152.07,152.01,8.81058158]
[1718268425395,22.278,152.07,152.02,8.29]
[1718268426615,30.568,152.07,152.01,8.81058158]
[1718268427099,276.3561,152.11,152.04,8.29]
[1718268427424,8.29,152.1,152.05,8.29]
[1718268427893,291.47451834,152.11,152.05,8.29]
[1718268428293,330.90451834,152.11,152.02,45.0]
[1718268428506,8.29,152.1,152.04,8.29]
[1718268428707,322.61451834,152.11,152.03,8.29]
[1718268428708,8.29,152.08,152.03,8.29]
[1718268428901,8.29,152.08,152.02,8.29]
[1718268429517,8.29,152.09,152.01,45.52058158]
[1718268429817,8.29,152.08,152.02,8.29]
[1718268430632,8.29,152.1,152.05,8.29]
[1718268431428,8.29,152.09,152.03,8.29]
[1718268431820,8.29,152.08,152.03,8.29]
[1718268431998,8.29,152.08,152.02,8.29]
[1718268432429,0.17,152.1,152.02,8.29]
[1718268432611,8.29,152.08,152.03,8.29]
[1718268432934,8.29,152.08,152.01,45.52058158]
[1718268433298,8.29,152.08,152.03,8.29]
[1718268433800,8.29,152.05,152.01,0.52058158]
[1718268434121,8.29,152.06,152.01,0.52058158]
[1718268434420,23.6371,152.07,152.01,8.81058158]
[1718268434720,20.0,152.06,152.01,8.81058158]
[1718268435816,28.29,152.06,152.01,0.52058158]
[1718268438333,8.29,152.05,152.01,0.52058158]
[1718268444909,20.34,152.04,152.01,0.52058158]
[1718268445111,8.29,152.02,152.01,0.52058158]
[1718268445427,28.63,152.02,152.01,0.52058158]
[1718268445632,28.97,152.02,152.01,0.52058158]
[1718268445829,68.4,152.02,152.01,0.52058158]
[1718268446030,85.0462,152.02,152.01,0.52058158]
[1718268448231,91.88138878,152.02,152.01,0.52058158]
[1718268448735,136.88138878,152.02,152.01,0.52058158]
[1718268449117,91.88138878,152.02,152.01,0.52058158]
[1718268455530,44.16138878,152.02,152.01,0.52058158]
[1718268455733,35.12518878,152.02,152.01,0.52058158]
[1718268455925,6.83518878,152.02,152.01,0.52058158]
[1718268456132,15.12518878,152.02,152.01,0.52058158]
[1718268459148,6.83518878,152.02,152.01,0.52058158]
[1718268459349,15.12518878,152.02,152.01,0.52058158]
[1718268466143,15.29518878,152.02,152.01,0.52058158]
[1718268466351,15.80518878,152.02,152.01,0.52058158]
[1718268468545,7.51518878,152.02,152.01,0.52058158]
[1718268468750,6.83518878,152.02,152.01,0.52058158]
[1718268468956,15.12518878,152.02,152.01,0.52058158]
[1718268469431,15.29518878,152.02,152.01,0.52058158]
[1718268472856,6.83518878,152.02,152.01,0.52058158]
[1718268474742,0.17,152.01,151.92,15.3747]
[1718268474938,8.29,151.97,151.92,15.3747]
[1718268475138,20.0,151.96,151.92,15.3747]
[1718268475646,20.0,151.96,151.92,23.6647]
[1718268476049,6.83232649,151.98,151.92,23.6647]
[1718268476050,20.0,151.97,151.92,23.6647]
[1718268476941,28.29,151.97,151.92,23.6647]
[1718268477138,20.0,151.97,151.92,23.6647]
[1718268477340,28.29,151.97,151.92,23.6647]
[1718268480065,28.29,151.97,151.92,15.3747]
[1718268481640,8.29,151.96,151.92,15.3747]
[1718268483053,8.29,151.96,151.91,8.29]
[1718268485173,8.29,151.96,151.88,16.3173]
[1718268485367,20.0,151.97,151.9,8.29]
[1718268485567,20.0,151.97,151.91,8.29]
[1718268485774,28.29,151.97,151.91,8.29]
[1718268487769,45.8812,151.96,151.86,0.8197469]
[1718268487945,8.29,151.92,151.86,9.1097469]
[1718268488372,8.29,151.92,151.87,8.29]
[1718268488877,8.29,151.93,151.87,8.29]
[1718268489082,20.0,151.92,151.87,8.29]
[1718268490871,28.29,151.92,151.87,8.29]
[1718268492355,8.29,151.91,151.86,0.8197469]
[1718268493672,8.29,151.9,151.86,0.8197469]
[1718268495279,8.29,151.89,151.86,0.8197469]
[1718268496967,8.29,151.87,151.86,0.8197469]
[1718268497149,28.29,151.87,151.86,0.8197469]
[1718268498484,28.46,151.87,151.86,0.8197469]
[1718268498669,35.32404518,151.87,151.86,0.8197469]
[1718268499671,27.03404518,151.87,151.86,0.8197469]
[1718268499973,35.15404518,151.87,151.86,0.8197469]
[1718268500273,26.86404518,151.87,151.86,0.8197469]
[1718268500578,35.15404518,151.87,151.86,0.8197469]
[1718268500754,6.86404518,151.87,151.86,0.8197469]
[1718268500953,8.29,151.91,151.86,0.8197469]
[1718268501462,8.29,151.9,151.86,0.8197469]
[1718268501973,8.29,151.89,151.86,0.8197469]
[1718268503974,8.29,151.9,151.86,0.8197469]
[1718268504362,6.86097798,151.92,151.86,0.8197469]
[1718268504681,8.29,151.9,151.86,0.8197469]
[1718268505054,8.29,151.89,151.86,0.8197469]
[1718268506660,6.86097798,151.92,151.86,0.8197469]
[1718268506861,8.29,151.89,151.86,0.8197469]
[1718268509260,8.29,151.88,151.86,0.8197469]
[1718268509975,28.46,151.87,151.86,0.8197469]
[1718268510570,20.0,151.87,151.86,0.8197469]
[1718268510766,28.29,151.87,151.86,0.8197469]
[1718268511455,35.14214128,151.87,151.86,0.8197469]
[1718268511884,35.31214128,151.87,151.86,0.8197469]
[1718268512074,35.82214128,151.87,151.86,0.8197469]
[1718268513079,35.31214128,151.87,151.86,0.8197469]
[1718268513268,35.14214128,151.87,151.86,0.8197469]
[1718268514886,6.85214128,151.87,151.86,0.8197469]
[1718268515059,8.29,151.89,151.86,0.8197469]
[1718268515383,15.13555372,151.89,151.86,0.8197469]
[1718268515681,6.84555372,151.89,151.86,0.8197469]
[1718268515981,254.3,151.93,151.86,0.8197469]
[1718268516180,8.29,151.91,151.86,45.8197469]
[1718268516367,8.29,151.92,151.86,54.1097469]
[1718268518181,261.14418222,151.93,151.87,8.29]
[1718268518488,20.0,151.92,151.87,8.29]
[1718268518869,28.29,151.92,151.86,54.1097469]
[1718268520577,8.29,151.92,151.86,54.1097469]
[1718268521689,8.29,151.92,151.86,45.8197469]
[1718268521983,8.29,151.92,151.86,9.1097469]
[1718268523765,6.84418222,151.93,151.86,9.1097469]
[1718268523994,8.29,151.97,151.91,8.29]
[1718268524662,8.29,151.97,151.9,16.4868]
[1718268524892,8.29,151.96,151.9,24.7768]
[1718268525091,52.69681965,151.98,151.86,9.1097469]
[1718268525396,8.29,151.91,151.87,45.0]
[1718268525579,8.29,151.91,151.86,45.8197469]
[1718268527181,8.29,151.92,151.86,54.1097469]
[1718268527785,20.34,151.97,151.88,8.29]
[1718268527971,20.34,151.97,151.89,53.29]
[1718268527972,20.0,151.97,151.89,53.29]
[1718268528288,8.29,151.95,151.89,53.29]
[1718268528787,8.29,151.96,151.9,8.29]
[1718268529788,8.29,151.95,151.89,53.29]
[1718268530491,8.29,151.94,151.89,45.0]
[1718268533279,8.29,151.94,151.89,53.29]
[1718268533597,13.26681965,151.98,151.89,53.29]
[1718268533786,8.29,151.95,151.89,53.29]
[1718268534994,8.29,151.94,151.89,45.0]
[1718268535207,6.85333117,151.96,151.89,45.0]
[1718268535389,8.29,151.95,151.89,53.29]
[1718268536594,8.29,151.94,151.89,45.0]
[1718268536791,6.85333117,151.96,151.86,0.8197469]
[1718268536792,8.29,151.93,151.86,0.8197469]
[1718268536988,8.29,151.9,151.86,0.8197469]
[1718268540808,0.17,151.94,151.86,0.8197469]
[1718268540999,8.29,151.9,151.86,0.8197469]
[1718268542200,6.85333117,151.96,151.86,9.1097469]
[1718268542389,6.85333117,151.96,151.87,53.29]
[1718268542691,8.29,151.93,151.87,53.29]
[1718268543079,8.29,151.93,151.86,0.8197469]
[1718268543080,15.3021,151.94,151.88,8.29]
[1718268543299,15.3021,151.94,151.86,0.8197469]
[1718268543300,8.29,151.89,151.86,0.8197469]
[1718268543502,8.29,151.87,151.86,0.8197469]
[1718268544001,8.29,151.88,151.86,0.8197469]
[1718268544588,54.7321,151.94,151.86,0.8197469]
[1718268544787,8.29,151.89,151.86,0.8197469]
[1718268546791,8.29,151.88,151.86,0.8197469]
[1718268547203,8.29,151.87,151.86,0.8197469]
[1718268547405,8.46,151.87,151.86,0.8197469]
[1718268549085,8.29,151.87,151.86,0.8197469]
[1718268550288,0.17,151.91,151.86,0.8197469]
[1718268550484,8.29,151.87,151.86,0.8197469]
[1718268551011,60.11,151.91,151.86,0.8197469]
[1718268551188,8.29,151.88,151.86,0.8197469]
[1718268551606,315.37229312,151.93,151.86,9.1097469]
[1718268551607,261.15599312,151.93,151.86,9.1097469]
[1718268551812,269.44599312,151.93,151.87,53.29]
[1718268552142,269.44599312,151.93,151.87,45.0]
[1718268552412,8.29,151.91,151.87,45.0]
[1718268552611,8.29,151.91,151.86,45.8197469]
[1718268552995,261.15599312,151.93,151.86,45.8197469]
[1718268554411,6.85599312,151.93,151.86,0.8197469]
[1718268554611,60.11,151.92,151.86,0.8197469]
[1718268555288,6.85658896,151.91,151.86,0.8197469]
[1718268555606,20.17,151.9,151.86,0.8197469]
[1718268555785,0.17,151.9,151.86,0.8197469]
[1718268556397,6.85658896,151.91,151.86,0.8197469]
[1718268556808,0.17,151.9,151.86,0.8197469]
[1718268557104,0.68,151.9,151.86,0.8197469]
[1718268558300,25.14,151.88,151.86,0.8197469]
[1718268558516,20.17,151.87,151.86,0.8197469]
[1718268559003,0.17,151.88,151.86,0.8197469]
[1718268559198,20.17,151.88,151.86,0.8197469]
[1718268559398,20.0,151.88,151.86,0.8197469]
[1718268560716,46.1713,151.89,151.86,0.8197469]
[1718268560914,0.17,151.88,151.86,0.8197469]
[1718268562522,0.17,151.89,151.86,0.8197469]
[1718268562838,71.25658896,151.91,151.86,0.8197469]
[1718268562839,31.82658896,151.91,151.86,0.8197469]
[1718268570509,0.17,151.9,151.86,0.8197469]
[1718268570712,0.68,151.9,151.86,0.8197469]
[1718268571243,6.85812805,151.89,151.86,0.8197469]
[1718268574941,15.18812805,151.89,151.86,0.8197469]
[1718268578314,8.33,151.88,151.86,0.8197469]
[1718268579321,8.33,151.87,151.86,0.8197469]
[1718268581029,6.85812805,151.89,151.86,0.8197469]
[1718268581337,8.33,151.87,151.86,0.8197469]
[1718268582636,6.85841056,151.88,151.86,0.8197469]
[1718268582848,8.33,151.87,151.86,0.8197469]
[1718268586228,6.85841056,151.88,151.86,0.8197469]
[1718268586434,8.33,151.87,151.86,0.8197469]
[1718268586826,6.85841056,151.88,151.86,0.8197469]
[1718268587129,15.18841056,151.88,151.86,0.8197469]
[1718268587327,6.85841056,151.88,151.86,0.8197469]
[1718268587527,8.33,151.89,151.86,0.8197469]
[1718268588653,6.85668329,151.9,151.86,0.8197469]
[1718268588822,8.33,151.89,151.86,0.8197469]
[1718268589025,6.85668329,151.9,151.86,0.8197469]
[1718268589240,8.33,151.91,151.86,45.8197469]
[1718268589629,8.33,151.9,151.86,45.8197469]
[1718268590231,8.33,151.9,151.86,0.8197469]
[1718268590553,8.33,151.89,151.86,0.8197469]
[1718268591352,6.85588173,151.92,151.86,0.8197469]
[1718268591553,8.33,151.89,151.86,0.8197469]
[1718268593036,8.33,151.9,151.86,0.8197469]
[1718268594047,6.85588173,151.92,151.86,0.8197469]
[1718268594361,8.33,151.9,151.86,0.8197469]
[1718268594557,6.85588173,151.92,151.86,0.8197469]
[1718268594738,15.18588173,151.92,151.86,54.1497469]
[1718268594936,8.33,151.91,151.86,45.8197469]
[1718268596664,8.33,151.9,151.86,45.8197469]
[1718268597634,8.33,151.91,151.86,45.8197469]
[1718268599672,8.33,151.9,151.86,45.8197469]
[1718268600046,8.33,151.9,151.86,0.8197469]
[1718268600438,8.33,151.9,151.86,45.8197469]
[1718268600851,8.33,151.9,151.86,0.8197469]
[1718268601453,8.33,151.89,151.86,0.8197469]
[1718268601657,8.33,151.87,151.86,0.8197469]
[1718268603741,35.9676,151.83,151.75,8.82181087]
[1718268603942,6.86105441,151.68,151.58,11.12517062]
[1718268604157,6.86105441,151.68,151.57,7.67913572]
[1718268604158,8.33,151.59,151.57,7.67913572]
[1718268604357,100.0,151.69,151.55,0.8197469]
[1718268604358,39.43,151.7,151.55,0.8197469]
[1718268604560,8.33,151.61,151.56,8.33]
[1718268604761,7.679135,151.66,151.55,0.8197469]
[1718268604935,47.109135,151.66,151.55,0.8197469]
[1718268605249,8.33,151.56,151.55,0.8197469]
[1718268605436,8.33,151.57,151.55,0.8197469]
[1718268606359,8.33,151.56,151.55,0.8197469]
[1718268606963,39.43,151.6,151.55,0.8197469]
[1718268607141,25.09,151.6,151.55,0.8197469]
[1718268607665,25.09,151.63,151.55,0.8197469]
[1718268608160,0.17,151.62,151.55,0.8197469]
[1718268608368,0.34,151.62,151.55,0.8197469]
[1718268608746,25.09,151.6,151.55,0.8197469]
[1718268609853,0.17,151.59,151.55,0.8197469]
[1718268610458,25.09,151.6,151.55,0.8197469]
[1718268611568,0.68,151.59,151.55,0.8197469]
[1718268611869,0.34,151.59,151.55,0.8197469]
[1718268612175,0.17,151.59,151.55,0.8197469]
[1718268612344,25.09,151.6,151.55,0.8197469]
[1718268613173,39.43,151.65,151.55,0.8197469]
[1718268613384,25.09,151.64,151.55,0.8197469]
[1718268614681,0.51,151.63,151.55,0.8197469]
[1718268614865,0.17,151.62,151.55,0.8197469]
[1718268615366,139.43,151.68,151.55,0.8197469]
[1718268615569,39.43,151.64,151.55,0.8197469]
[1718268615744,0.17,151.63,151.55,0.8197469]
[1718268616551,0.17,151.62,151.55,0.8197469]
[1718268616848,0.34,151.62,151.55,0.8197469]
[1718268617276,64.86,151.62,151.55,0.8197469]
[1718268617478,0.17,151.6,151.55,0.8197469]
[1718268617670,0.34,151.6,151.55,0.8197469]
[1718268617973,46.0373,151.64,151.55,0.8197469]
[1718268618169,0.68,151.63,151.55,0.8197469]
[1718268623072,0.17,151.63,151.55,0.8197469]
[1718268624272,0.68,151.63,151.55,0.8197469]
[1718268625479,0.17,151.63,151.55,0.8197469]
[1718268625660,0.68,151.64,151.55,0.8197469]
[1718268627474,0.68,151.64,151.55,16.2758469]
[1718268627779,0.34,151.64,151.55,16.2758469]
[1718268629673,2.53557406,151.65,151.56,0.17]
[1718268629861,25.09,151.68,151.56,0.68]
[1718268630981,184.77,151.67,151.55,16.2758469]
[1718268631282,0.17,151.64,151.55,16.2758469]
[1718268631492,0.68,151.64,151.55,16.2758469]
[1718268631860,2.53557406,151.66,151.55,16.2758469]
[1718268632077,6.6162,151.69,151.55,16.2758469]
[1718268632265,6.6162,151.69,151.56,20.0]
[1718268632571,6.6162,151.69,151.57,0.17]
[1718268632572,25.09,151.68,151.57,0.17]
[1718268632770,2.53557406,151.69,151.56,6.02]
[1718268632976,2.53557406,151.69,151.59,25.09]
[1718268633281,45.5902,151.74,151.6,20.0]
[1718268633459,45.5902,151.74,151.6,22.4405]
[1718268633663,45.5902,151.74,151.61,0.17]
[1718268633868,45.5902,151.74,151.61,3.1204]
[1718268634282,45.5902,151.74,151.61,3.1203]
[1718268634480,39.43,151.74,151.61,0.68]
[1718268634671,39.43,151.76,151.63,6.3647]
[1718268634870,31.6246,151.78,151.65,16.03]
[1718268635061,25.09,151.78,151.66,2.7795]
[1718268635381,20.0,151.79,151.67,2.4394]
[1718268635681,31.6246,151.81,151.67,22.4394]
[1718268635889,27.62557406,151.81,151.67,22.4394]
[1718268636080,27.62557406,151.81,151.68,3.1193]
[1718268636681,27.62557406,151.81,151.68,0.68]
[1718268639389,0.34,151.8,151.68,0.68]
[1718268639686,27.62557406,151.81,151.68,0.68]
[1718268640778,0.17,151.8,151.65,16.03]
[1718268640979,0.68,151.8,151.65,16.03]
[1718268641183,0.51,151.8,151.65,16.03]
[1718268641792,0.17,151.79,151.65,16.03]
[1718268641974,0.68,151.79,151.66,20.17]
[1718268642484,0.68,151.79,151.66,20.0]
[1718268643280,0.68,151.79,151.67,0.34]